[Event "December 5 Late 2023"]
[Site "https://www.chess.com"]
[Date "2023.12.05"]
[Round "4"]
[White "Jesusesmifuerza"]
[Black "Wanyama, Harold"]
[Result "0-1"]
[Board "146"]
[TimeControl "180+1"]
[BlackFideId "10000380"]
[WhiteElo "2125"]
[BlackElo "2457"]
[BlackTeam "UGA"]
[WhiteClock "0:00:02"]
[BlackClock "0:00:31"]

1. e4 {[%clk 0:02:59]}  c5 {[%clk 0:02:59]} 2. Nf3 {[%clk 0:02:59]}  e6 {[%clk 0:02:58]} 3. d4 {[%clk 0:02:59]}  cxd4 {[%clk 0:02:58]} 4. Nxd4 {[%clk 0:03:00]}  Nc6 {[%clk 0:02:59]} 5. Nc3 {[%clk 0:03:00]}  Qc7 {[%clk 0:02:58]} 6. a3 {[%clk 0:02:55]}  Nf6 {[%clk 0:02:58]} 7. Be3 {[%clk 0:02:55]}  a6 {[%clk 0:02:58]} 8. Be2 {[%clk 0:02:54]}  b5 {[%clk 0:02:58]} 9. O-O {[%clk 0:02:54]}  Bb7 {[%clk 0:02:58]} 10. f4 {[%clk 0:02:50]}  d6 {[%clk 0:02:54]} 11. Qd2 {[%clk 0:02:48]}  Rc8 {[%clk 0:02:54]} 12. Rad1 {[%clk 0:02:48]}  Be7 {[%clk 0:02:54]} 13. Bf3 {[%clk 0:02:31]}  Na5 {[%clk 0:02:54]} 14. Qc1 {[%clk 0:02:15]}  Nc4 {[%clk 0:02:51]} 15. e5 {[%clk 0:02:09]}  dxe5 {[%clk 0:02:48]} 16. Bxb7 {[%clk 0:02:08]}  Qxb7 {[%clk 0:02:46]} 17. fxe5 {[%clk 0:02:08]}  Nxe5 {[%clk 0:02:46]} 18. Nb3 {[%clk 0:01:58]}  Nc4 {[%clk 0:02:44]} 19. Bf2 {[%clk 0:01:52]}  O-O {[%clk 0:02:40]} 20. Kh1 {[%clk 0:01:50]}  Nxa3 {[%clk 0:02:38]} 21. bxa3 {[%clk 0:01:46]}  Rxc3 {[%clk 0:02:37]} 22. Bd4 {[%clk 0:01:47]}  Rcc8 {[%clk 0:02:35]} 23. Qg5 {[%clk 0:01:42]}  h6 {[%clk 0:02:34]} 24. Qg3 {[%clk 0:01:40]}  Kh8 {[%clk 0:02:27]} 25. Rxf6 {[%clk 0:01:32]}  Bxf6 {[%clk 0:02:15]} 26. Bxf6 {[%clk 0:01:32]}  gxf6 {[%clk 0:02:15]} 27. Qf4 {[%clk 0:01:25]}  Kg7 {[%clk 0:02:13]} 28. Rd3 {[%clk 0:01:25]}  Rg8 {[%clk 0:02:04]} 29. Rg3+ {[%clk 0:01:23]}  Kh7 {[%clk 0:02:02]} 30. Nd4 {[%clk 0:00:35]}  Qe7 {[%clk 0:01:41]} 31. Qe4+ {[%clk 0:00:31]}  Rg6 {[%clk 0:01:34]} 32. Nf5 {[%clk 0:00:29]}  Qf8 {[%clk 0:01:22]} 33. Nh4 {[%clk 0:00:24]}  f5 {[%clk 0:01:19]} 34. Nxg6 {[%clk 0:00:20]}  fxe4 {[%clk 0:01:16]} 35. Nxf8+ {[%clk 0:00:20]}  Rxf8 {[%clk 0:01:15]} 36. Rc3 {[%clk 0:00:20]}  Rd8 {[%clk 0:01:11]} 37. Kg1 {[%clk 0:00:20]}  Rd6 {[%clk 0:01:09]} 38. Kf2 {[%clk 0:00:20]}  f5 {[%clk 0:01:08]} 39. Ke3 {[%clk 0:00:20]}  Kg6 {[%clk 0:01:08]} 40. Kf4 {[%clk 0:00:19]}  Kf6 {[%clk 0:01:08]} 41. Rc5 {[%clk 0:00:17]}  Rd2 {[%clk 0:01:06]} 42. Kg3 {[%clk 0:00:11]}  e5 {[%clk 0:00:55]} 43. Rc6+ {[%clk 0:00:12]}  Kg5 {[%clk 0:00:51]} 44. h4+ {[%clk 0:00:13]}  Kh5 {[%clk 0:00:51]} 45. Kh3 {[%clk 0:00:13]}  Re2 {[%clk 0:00:42]} 46. Rf6 {[%clk 0:00:12]}  Re3+ {[%clk 0:00:39]} 47. g3 {[%clk 0:00:12]}  f4 {[%clk 0:00:39]} 48. Rf5+ {[%clk 0:00:11]}  Kg6 {[%clk 0:00:39]} 49. Rxe5 {[%clk 0:00:11]}  Rxg3+ {[%clk 0:00:38]} 50. Kh2 {[%clk 0:00:11]}  e3 {[%clk 0:00:39]} 51. h5+ {[%clk 0:00:10]}  Kf6 {[%clk 0:00:37]} 52. Re8 {[%clk 0:00:09]}  Rf3 {[%clk 0:00:35]} 53. Ra8 {[%clk 0:00:08]}  e2 {[%clk 0:00:32]} 54. Rxa6+ {[%clk 0:00:02]}  Kf5 {[%clk 0:00:31]} 0-1

[Event "December 5 Late 2023"]
[Site "https://www.chess.com"]
[Date "2023.12.05"]
[Round "4"]
[White "Negron Lizarazo, Juan Sebastian"]
[Black "Rios Escobar, Adan"]
[Result "0-1"]
[Board "147"]
[TimeControl "180+1"]
[WhiteFideId "3936910"]
[BlackFideId "3403645"]
[WhiteElo "2101"]
[BlackElo "2451"]
[WhiteTeam "COL"]
[BlackTeam "CHI"]
[WhiteClock "0:00:21"]
[BlackClock "0:00:16"]

1. e4 {[%clk 0:02:58]}  c6 {[%clk 0:02:58]} 2. d4 {[%clk 0:02:57]}  d5 {[%clk 0:02:59]} 3. e5 {[%clk 0:02:53]}  Bf5 {[%clk 0:02:58]} 4. Nf3 {[%clk 0:02:53]}  e6 {[%clk 0:02:52]} 5. Be2 {[%clk 0:02:52]}  c5 {[%clk 0:02:48]} 6. c3 {[%clk 0:02:51]}  Nd7 {[%clk 0:02:42]} 7. O-O {[%clk 0:02:48]}  Ne7 {[%clk 0:02:34]} 8. Bg5 {[%clk 0:02:44]}  h6 {[%clk 0:02:32]} 9. Bh4 {[%clk 0:02:42]}  Qb6 {[%clk 0:02:27]} 10. b3 {[%clk 0:02:33]}  Nc6 {[%clk 0:02:24]} 11. a3 {[%clk 0:02:22]}  g5 {[%clk 0:02:21]} 12. Bg3 {[%clk 0:02:20]}  g4 {[%clk 0:02:21]} 13. Nh4 {[%clk 0:02:20]}  cxd4 {[%clk 0:02:20]} 14. Nxf5 {[%clk 0:01:59]}  exf5 {[%clk 0:02:20]} 15. cxd4 {[%clk 0:01:58]}  Qxd4 {[%clk 0:02:01]} 16. Nd2 {[%clk 0:01:56]}  Ndxe5 {[%clk 0:01:48]} 17. b4 {[%clk 0:01:52]}  Bg7 {[%clk 0:01:37]} 18. Qc2 {[%clk 0:01:48]}  f4 {[%clk 0:01:31]} 19. Nb3 {[%clk 0:01:42]}  Qe4 {[%clk 0:01:18]} 20. Qxe4 {[%clk 0:01:22]}  dxe4 {[%clk 0:01:19]} 21. Bxf4 {[%clk 0:01:22]}  Nd3 {[%clk 0:01:04]} 22. Bxd3 {[%clk 0:01:18]}  Bxa1 {[%clk 0:01:03]} 23. Bxe4 {[%clk 0:01:15]}  Bf6 {[%clk 0:00:56]} 24. Nc5 {[%clk 0:01:12]}  O-O {[%clk 0:00:42]} 25. Nxb7 {[%clk 0:01:09]}  Ne5 {[%clk 0:00:34]} 26. Nc5 {[%clk 0:01:00]}  Rad8 {[%clk 0:00:29]} 27. Bxh6 {[%clk 0:00:59]}  Bg7 {[%clk 0:00:25]} 28. Bg5 {[%clk 0:00:40]}  Rd4 {[%clk 0:00:23]} 29. Be3 {[%clk 0:00:28]}  Rc4 {[%clk 0:00:23]} 30. Bd5 {[%clk 0:00:27]}  Rc3 {[%clk 0:00:20]} 31. Bd4 {[%clk 0:00:26]}  Nf3+ {[%clk 0:00:18]} 32. gxf3 {[%clk 0:00:25]}  Bxd4 {[%clk 0:00:19]} 33. fxg4 {[%clk 0:00:24]}  Bxc5 {[%clk 0:00:19]} 34. bxc5 {[%clk 0:00:23]}  Rxc5 {[%clk 0:00:19]} 35. Bg2 {[%clk 0:00:18]}  Rc3 {[%clk 0:00:15]} 36. h4 {[%clk 0:00:18]}  Rxa3 {[%clk 0:00:15]} 37. Kh2 {[%clk 0:00:18]}  a5 {[%clk 0:00:14]} 38. f3 {[%clk 0:00:18]}  Rd8 {[%clk 0:00:14]} 39. Kg3 {[%clk 0:00:18]}  Rd2 {[%clk 0:00:14]} 40. h5 {[%clk 0:00:18]}  Raa2 {[%clk 0:00:14]} 41. Rg1 {[%clk 0:00:18]}  Rxg2+ {[%clk 0:00:13]} 42. Rxg2 {[%clk 0:00:18]}  Rxg2+ {[%clk 0:00:14]} 43. Kxg2 {[%clk 0:00:18]}  a4 {[%clk 0:00:14]} 44. g5 {[%clk 0:00:19]}  a3 {[%clk 0:00:15]} 45. g6 {[%clk 0:00:18]}  fxg6 {[%clk 0:00:15]} 46. hxg6 {[%clk 0:00:19]}  Kg7 {[%clk 0:00:15]} 47. f4 {[%clk 0:00:20]}  Kxg6 {[%clk 0:00:15]} 48. Kf3 {[%clk 0:00:19]}  a2 {[%clk 0:00:15]} 49. Ke4 {[%clk 0:00:20]}  a1=Q {[%clk 0:00:16]} 50. f5+ {[%clk 0:00:21]}  Kf6 {[%clk 0:00:16]} 0-1

[Event "December 5 Late 2023"]
[Site "https://www.chess.com"]
[Date "2023.12.05"]
[Round "4"]
[White "Liu, Casper"]
[Black "De Souza, Arthur Olintho"]
[Result "1-0"]
[Board "149"]
[TimeControl "180+1"]
[WhiteFideId "1454153"]
[BlackFideId "2116200"]
[WhiteElo "2450"]
[BlackElo "2040"]
[WhiteTeam "DEN"]
[BlackTeam "BRA"]
[WhiteClock "0:02:54"]
[BlackClock "0:02:35"]

1. d4 {[%clk 0:03:00]}  Nf6 {[%clk 0:02:59]} 2. Bf4 {[%clk 0:03:01]}  g6 {[%clk 0:02:58]} 3. Nc3 {[%clk 0:03:01]}  Bg7 {[%clk 0:02:59]} 4. e4 {[%clk 0:03:01]}  O-O {[%clk 0:03:00]} 5. Qd2 {[%clk 0:03:01]}  d5 {[%clk 0:03:00]} 6. e5 {[%clk 0:03:00]}  Ne4 {[%clk 0:02:56]} 7. Nxe4 {[%clk 0:03:00]}  dxe4 {[%clk 0:02:57]} 8. O-O-O {[%clk 0:03:00]}  Nc6 {[%clk 0:02:56]} 9. Bh6 {[%clk 0:02:59]}  Be6 {[%clk 0:02:46]} 10. Bxg7 {[%clk 0:02:53]}  Kxg7 {[%clk 0:02:35]} 11. d5 {[%clk 0:02:54]} 1-0

[Event "December 5 Late 2023"]
[Site "https://www.chess.com"]
[Date "2023.12.05"]
[Round "4"]
[White "Filipovic, Slobodan J"]
[Black "Aung Thant Zin"]
[Result "1-0"]
[Board "150"]
[TimeControl "180+1"]
[WhiteFideId "939633"]
[BlackFideId "13000063"]
[WhiteElo "2443"]
[BlackElo "2038"]
[WhiteTeam "SRB"]
[BlackTeam "MYA"]
[WhiteClock "0:01:09"]
[BlackClock "0:01:13"]

1. c4 {[%clk 0:03:00]}  e5 {[%clk 0:02:59]} 2. Nc3 {[%clk 0:03:01]}  Nf6 {[%clk 0:02:59]} 3. d3 {[%clk 0:02:59]}  d5 {[%clk 0:02:59]} 4. cxd5 {[%clk 0:02:59]}  Nxd5 {[%clk 0:03:00]} 5. e4 {[%clk 0:02:59]}  Nb6 {[%clk 0:02:59]} 6. Nf3 {[%clk 0:02:58]}  Nc6 {[%clk 0:02:59]} 7. a4 {[%clk 0:02:57]}  a5 {[%clk 0:02:56]} 8. Be3 {[%clk 0:02:57]}  Be7 {[%clk 0:02:54]} 9. d4 {[%clk 0:02:50]}  exd4 {[%clk 0:02:53]} 10. Nxd4 {[%clk 0:02:51]}  Nxd4 {[%clk 0:02:51]} 11. Bxd4 {[%clk 0:02:51]}  O-O {[%clk 0:02:51]} 12. Be2 {[%clk 0:02:49]}  Be6 {[%clk 0:02:49]} 13. O-O {[%clk 0:02:48]}  Nc4 {[%clk 0:02:48]} 14. b3 {[%clk 0:02:45]}  Nd6 {[%clk 0:02:42]} 15. f4 {[%clk 0:02:39]}  f6 {[%clk 0:02:41]} 16. Qc2 {[%clk 0:02:36]}  Qe8 {[%clk 0:02:32]} 17. Bf3 {[%clk 0:02:28]}  c6 {[%clk 0:02:30]} 18. Rad1 {[%clk 0:02:25]}  Qf7 {[%clk 0:02:28]} 19. Rb1 {[%clk 0:02:20]}  Rac8 {[%clk 0:02:06]} 20. Bb6 {[%clk 0:02:09]}  Bd8 {[%clk 0:01:59]} 21. Bc5 {[%clk 0:02:04]}  Be7 {[%clk 0:01:59]} 22. Rfd1 {[%clk 0:02:02]}  Ne8 {[%clk 0:01:56]} 23. Bb6 {[%clk 0:01:50]}  Bb4 {[%clk 0:01:56]} 24. Na2 {[%clk 0:01:46]}  Qe7 {[%clk 0:01:55]} 25. Nxb4 {[%clk 0:01:41]}  axb4 {[%clk 0:01:39]} 26. Bc5 {[%clk 0:01:40]}  Qf7 {[%clk 0:01:39]} 27. f5 {[%clk 0:01:26]}  Bd7 {[%clk 0:01:34]} 28. Bxf8 {[%clk 0:01:25]}  Kxf8 {[%clk 0:01:34]} 29. Qc5+ {[%clk 0:01:23]}  Qe7 {[%clk 0:01:23]} 30. Rbc1 {[%clk 0:01:12]}  Qxc5+ {[%clk 0:01:20]} 31. Rxc5 {[%clk 0:01:13]}  Ke7 {[%clk 0:01:19]} 32. Rc4 {[%clk 0:01:12]}  Nc7 {[%clk 0:01:18]} 33. Rxb4 {[%clk 0:01:10]}  Be8 {[%clk 0:01:13]} 34. Rxb7 {[%clk 0:01:09]} 1-0

[Event "December 5 Late 2023"]
[Site "https://www.chess.com"]
[Date "2023.12.05"]
[Round "4"]
[White "DCacheiro"]
[Black "Bongo Akanga Ndjila, Barthelemy"]
[Result "1-0"]
[Board "151"]
[TimeControl "180+1"]
[BlackFideId "10609431"]
[WhiteElo "2441"]
[BlackElo "2027"]
[BlackTeam "GAB"]
[WhiteClock "0:02:16"]
[BlackClock "0:01:33"]

1. e4 {[%clk 0:03:00]}  e6 {[%clk 0:02:55]} 2. d4 {[%clk 0:03:00]}  d5 {[%clk 0:02:55]} 3. Nc3 {[%clk 0:03:01]}  Bb4 {[%clk 0:02:54]} 4. e5 {[%clk 0:03:00]}  c5 {[%clk 0:02:53]} 5. a3 {[%clk 0:03:01]}  Bxc3+ {[%clk 0:02:53]} 6. bxc3 {[%clk 0:03:01]}  Qa5 {[%clk 0:02:53]} 7. Bd2 {[%clk 0:03:01]}  Qa4 {[%clk 0:02:54]} 8. Rb1 {[%clk 0:03:01]}  c4 {[%clk 0:02:53]} 9. Be2 {[%clk 0:02:55]}  Nc6 {[%clk 0:02:51]} 10. Bh5 {[%clk 0:02:53]}  Nge7 {[%clk 0:02:49]} 11. Ne2 {[%clk 0:02:49]}  g6 {[%clk 0:02:19]} 12. Bg4 {[%clk 0:02:48]}  h5 {[%clk 0:02:17]} 13. Bh3 {[%clk 0:02:46]}  Bd7 {[%clk 0:02:13]} 14. O-O {[%clk 0:02:46]}  O-O-O {[%clk 0:02:10]} 15. Qc1 {[%clk 0:02:45]}  Nf5 {[%clk 0:02:08]} 16. Bxf5 {[%clk 0:02:38]}  gxf5 {[%clk 0:02:07]} 17. Bg5 {[%clk 0:02:38]}  Rdg8 {[%clk 0:02:06]} 18. Bf6 {[%clk 0:02:37]}  Rh7 {[%clk 0:02:05]} 19. h4 {[%clk 0:02:27]}  Rg6 {[%clk 0:02:02]} 20. Nf4 {[%clk 0:02:24]}  Rg8 {[%clk 0:01:59]} 21. Nh3 {[%clk 0:02:22]}  Rg6 {[%clk 0:01:35]} 22. Ng5 {[%clk 0:02:20]}  Rhh6 {[%clk 0:01:35]} 23. Nxf7 {[%clk 0:02:19]}  Rh7 {[%clk 0:01:34]} 24. Nd6+ {[%clk 0:02:16]}  Kc7 {[%clk 0:01:33]} 25. Rxb7# {[%clk 0:02:16]} 1-0

[Event "December 5 Late 2023"]
[Site "https://www.chess.com"]
[Date "2023.12.05"]
[Round "4"]
[White "Cornelison, Paul"]
[Black "Lopusiewicz, Piotr"]
[Result "0-1"]
[Board "153"]
[TimeControl "180+1"]
[WhiteFideId "2004186"]
[BlackFideId "1116029"]
[WhiteElo "1899"]
[BlackElo "2422"]
[WhiteTeam "USA"]
[BlackTeam "POL"]
[WhiteClock "0:00:08"]
[BlackClock "0:00:16"]

1. e4 {[%clk 0:03:00]}  e5 {[%clk 0:03:00]} 2. Nf3 {[%clk 0:03:01]}  Nc6 {[%clk 0:03:00]} 3. Bc4 {[%clk 0:03:01]}  Nf6 {[%clk 0:03:00]} 4. d3 {[%clk 0:03:01]}  Bc5 {[%clk 0:03:00]} 5. Bb3 {[%clk 0:03:00]}  d6 {[%clk 0:02:59]} 6. c3 {[%clk 0:03:00]}  a5 {[%clk 0:02:59]} 7. a4 {[%clk 0:03:00]}  h6 {[%clk 0:02:59]} 8. Nbd2 {[%clk 0:03:00]}  O-O {[%clk 0:02:59]} 9. h3 {[%clk 0:03:01]}  Be6 {[%clk 0:02:59]} 10. Bc2 {[%clk 0:03:00]}  d5 {[%clk 0:02:55]} 11. Qe2 {[%clk 0:02:59]}  Re8 {[%clk 0:02:41]} 12. Nf1 {[%clk 0:02:51]}  dxe4 {[%clk 0:02:33]} 13. dxe4 {[%clk 0:02:51]}  Nd7 {[%clk 0:02:22]} 14. Be3 {[%clk 0:02:49]}  Qe7 {[%clk 0:02:18]} 15. Rd1 {[%clk 0:02:34]}  Nb6 {[%clk 0:02:11]} 16. b3 {[%clk 0:02:28]}  Rad8 {[%clk 0:01:59]} 17. N1d2 {[%clk 0:02:06]}  Nd7 {[%clk 0:01:45]} 18. O-O {[%clk 0:02:05]}  Nf8 {[%clk 0:01:44]} 19. Nc4 {[%clk 0:01:49]}  Bxc4 {[%clk 0:01:40]} 20. Qxc4 {[%clk 0:01:49]}  Bxe3 {[%clk 0:01:40]} 21. fxe3 {[%clk 0:01:50]}  Rxd1 {[%clk 0:01:30]} 22. Bxd1 {[%clk 0:01:39]}  Nd7 {[%clk 0:01:22]} 23. Nh2 {[%clk 0:01:37]}  Qe6 {[%clk 0:01:10]} 24. Qb5 {[%clk 0:00:51]}  Nb6 {[%clk 0:00:54]} 25. Bh5 {[%clk 0:00:40]}  g6 {[%clk 0:00:48]} 26. Bg4 {[%clk 0:00:36]}  Qe7 {[%clk 0:00:47]} 27. Qe2 {[%clk 0:00:31]}  Qc5 {[%clk 0:00:39]} 28. Qf3 {[%clk 0:00:27]}  Qe7 {[%clk 0:00:36]} 29. h4 {[%clk 0:00:22]}  h5 {[%clk 0:00:36]} 30. Bh3 {[%clk 0:00:22]}  Rf8 {[%clk 0:00:32]} 31. g3 {[%clk 0:00:20]}  Nd8 {[%clk 0:00:20]} 32. Qf6 {[%clk 0:00:20]}  Qxf6 {[%clk 0:00:20]} 33. Rxf6 {[%clk 0:00:21]}  Kg7 {[%clk 0:00:21]} 34. Rf2 {[%clk 0:00:19]}  Re8 {[%clk 0:00:20]} 35. Nf3 {[%clk 0:00:19]}  f6 {[%clk 0:00:19]} 36. Rd2 {[%clk 0:00:18]}  Ne6 {[%clk 0:00:19]} 37. Kf2 {[%clk 0:00:15]}  Nc5 {[%clk 0:00:19]} 38. b4 {[%clk 0:00:12]}  Nxe4+ {[%clk 0:00:19]} 39. Ke2 {[%clk 0:00:12]}  Nxd2 {[%clk 0:00:19]} 40. Kxd2 {[%clk 0:00:12]}  axb4 {[%clk 0:00:19]} 41. cxb4 {[%clk 0:00:13]}  Nxa4 {[%clk 0:00:20]} 42. Kc2 {[%clk 0:00:13]}  Nb6 {[%clk 0:00:19]} 43. Kb3 {[%clk 0:00:14]}  Rd8 {[%clk 0:00:19]} 44. b5 {[%clk 0:00:14]}  f5 {[%clk 0:00:20]} 45. Bf1 {[%clk 0:00:13]}  e4 {[%clk 0:00:20]} 46. Nd4 {[%clk 0:00:12]}  Rd6 {[%clk 0:00:17]} 47. Be2 {[%clk 0:00:13]}  Kf6 {[%clk 0:00:17]} 48. Kb4 {[%clk 0:00:11]}  Nd5+ {[%clk 0:00:17]} 49. Kc5 {[%clk 0:00:11]}  Nxe3 {[%clk 0:00:17]} 50. Nb3 {[%clk 0:00:11]}  Rd5+ {[%clk 0:00:16]} 51. Kb4 {[%clk 0:00:10]}  b6 {[%clk 0:00:16]} 52. Bf1 {[%clk 0:00:08]}  Nxf1 {[%clk 0:00:16]} 0-1

[Event "December 5 Late 2023"]
[Site "https://www.chess.com"]
[Date "2023.12.05"]
[Round "4"]
[White "Bhandari, Krish"]
[Black "Sarkar, Justin"]
[Result "0-1"]
[Board "161"]
[TimeControl "180+1"]
[WhiteFideId "30955106"]
[BlackFideId "2010011"]
[WhiteElo "2111"]
[BlackElo "2285"]
[WhiteTeam "USA"]
[BlackTeam "USA"]
[WhiteClock "0:00:09"]
[BlackClock "0:00:30"]

1. Nf3 {[%clk 0:03:00]}  Nf6 {[%clk 0:02:49]} 2. b3 {[%clk 0:03:01]}  a5 {[%clk 0:02:43]} 3. Bb2 {[%clk 0:03:00]}  a4 {[%clk 0:02:42]} 4. g3 {[%clk 0:02:58]}  b6 {[%clk 0:02:35]} 5. Bg2 {[%clk 0:02:56]}  Bb7 {[%clk 0:02:34]} 6. O-O {[%clk 0:02:57]}  e6 {[%clk 0:02:29]} 7. Nc3 {[%clk 0:02:52]}  a3 {[%clk 0:02:17]} 8. Bc1 {[%clk 0:02:50]}  Bb4 {[%clk 0:02:14]} 9. Nb1 {[%clk 0:02:46]}  O-O {[%clk 0:02:12]} 10. c3 {[%clk 0:02:45]}  Be7 {[%clk 0:02:12]} 11. b4 {[%clk 0:02:39]}  c5 {[%clk 0:02:09]} 12. Bxa3 {[%clk 0:02:32]}  cxb4 {[%clk 0:01:48]} 13. Bxb4 {[%clk 0:02:26]}  Nc6 {[%clk 0:01:42]} 14. Bxe7 {[%clk 0:02:21]}  Qxe7 {[%clk 0:01:42]} 15. d3 {[%clk 0:02:13]}  Na5 {[%clk 0:01:33]} 16. Nbd2 {[%clk 0:02:10]}  Rfc8 {[%clk 0:01:19]} 17. c4 {[%clk 0:02:08]}  d5 {[%clk 0:01:16]} 18. cxd5 {[%clk 0:01:45]}  Nxd5 {[%clk 0:01:16]} 19. Nb3 {[%clk 0:01:31]}  Nc3 {[%clk 0:01:10]} 20. Qd2 {[%clk 0:01:31]}  Qa3 {[%clk 0:01:05]} 21. Nxa5 {[%clk 0:01:10]}  Rxa5 {[%clk 0:01:00]} 22. Rac1 {[%clk 0:00:50]}  Rac5 {[%clk 0:00:56]} 23. Ra1 {[%clk 0:00:44]}  h6 {[%clk 0:00:51]} 24. Nd4 {[%clk 0:00:37]}  Bxg2 {[%clk 0:00:49]} 25. Kxg2 {[%clk 0:00:38]}  b5 {[%clk 0:00:46]} 26. Nc2 {[%clk 0:00:15]}  Qa8+ {[%clk 0:00:44]} 27. f3 {[%clk 0:00:12]}  Nxe2 {[%clk 0:00:42]} 28. Ne3 {[%clk 0:00:07]}  Nd4 {[%clk 0:00:41]} 29. Rac1 {[%clk 0:00:07]}  Rxc1 {[%clk 0:00:40]} 30. Rxc1 {[%clk 0:00:08]}  Qxf3+ {[%clk 0:00:38]} 31. Kh3 {[%clk 0:00:09]}  Rxc1 {[%clk 0:00:34]} 32. Qxc1 {[%clk 0:00:09]}  Ne2 {[%clk 0:00:31]} 33. Qd2 {[%clk 0:00:08]}  Ng1+ {[%clk 0:00:30]} 34. Kh4 {[%clk 0:00:09]}  g5# {[%clk 0:00:30]} 0-1

[Event "December 5 Late 2023"]
[Site "https://www.chess.com"]
[Date "2023.12.05"]
[Round "4"]
[White "Cardozo Munar, Carlos Eduardo"]
[Black "Calcada, Lucas Galvan"]
[Result "1-0"]
[Board "162"]
[TimeControl "180+1"]
[WhiteFideId "4409477"]
[BlackFideId "22746099"]
[WhiteElo "2269"]
[BlackElo "1983"]
[WhiteTeam "COL"]
[BlackTeam "BRA"]
[WhiteClock "0:01:11"]
[BlackClock "0:00:13"]

1. d4 {[%clk 0:03:00]}  Nf6 {[%clk 0:02:54]} 2. Bg5 {[%clk 0:02:58]}  e6 {[%clk 0:02:53]} 3. e4 {[%clk 0:02:57]}  Be7 {[%clk 0:02:45]} 4. Nd2 {[%clk 0:02:57]}  d5 {[%clk 0:02:45]} 5. e5 {[%clk 0:02:56]}  Nfd7 {[%clk 0:02:46]} 6. Be3 {[%clk 0:02:57]}  c5 {[%clk 0:02:46]} 7. c3 {[%clk 0:02:57]}  Nc6 {[%clk 0:02:46]} 8. Bd3 {[%clk 0:02:57]}  a6 {[%clk 0:02:43]} 9. Ne2 {[%clk 0:02:58]}  b5 {[%clk 0:02:44]} 10. a3 {[%clk 0:02:58]}  Qb6 {[%clk 0:02:43]} 11. O-O {[%clk 0:02:58]}  O-O {[%clk 0:02:42]} 12. f4 {[%clk 0:02:58]}  Bb7 {[%clk 0:02:39]} 13. Kh1 {[%clk 0:02:58]}  Rac8 {[%clk 0:02:33]} 14. Qe1 {[%clk 0:02:57]}  f6 {[%clk 0:02:29]} 15. Qg3 {[%clk 0:02:52]}  f5 {[%clk 0:02:28]} 16. Qh3 {[%clk 0:02:51]}  Bd8 {[%clk 0:02:00]} 17. g4 {[%clk 0:02:48]}  Ne7 {[%clk 0:01:59]} 18. Rg1 {[%clk 0:02:46]}  Kh8 {[%clk 0:01:57]} 19. Ng3 {[%clk 0:02:40]}  Nxe5 {[%clk 0:01:46]} 20. fxe5 {[%clk 0:02:18]}  g6 {[%clk 0:01:18]} 21. Qh6 {[%clk 0:02:11]}  Bc7 {[%clk 0:01:10]} 22. gxf5 {[%clk 0:02:11]}  exf5 {[%clk 0:01:08]} 23. Bg5 {[%clk 0:02:04]}  Ng8 {[%clk 0:00:58]} 24. Qh4 {[%clk 0:02:04]}  Bxe5 {[%clk 0:00:49]} 25. dxe5 {[%clk 0:01:48]}  d4+ {[%clk 0:00:49]} 26. Be4 {[%clk 0:01:48]}  fxe4 {[%clk 0:00:48]} 27. Ndxe4 {[%clk 0:01:46]}  dxc3 {[%clk 0:00:41]} 28. bxc3 {[%clk 0:01:45]}  Rce8 {[%clk 0:00:38]} 29. Rgf1 {[%clk 0:01:39]}  Qc6 {[%clk 0:00:31]} 30. Kg1 {[%clk 0:01:24]}  c4 {[%clk 0:00:26]} 31. Rxf8 {[%clk 0:01:16]}  Rxf8 {[%clk 0:00:25]} 32. Rf1 {[%clk 0:01:17]}  Qb6+ {[%clk 0:00:21]} 33. Kg2 {[%clk 0:01:17]}  Rxf1 {[%clk 0:00:15]} 34. Kxf1 {[%clk 0:01:18]}  Qc6 {[%clk 0:00:14]} 35. Bf6+ {[%clk 0:01:12]}  Nxf6 {[%clk 0:00:14]} 36. Qxf6+ {[%clk 0:01:13]}  Qxf6+ {[%clk 0:00:13]} 37. Nxf6 {[%clk 0:01:14]}  Kg7 {[%clk 0:00:13]} 38. Ke2 {[%clk 0:01:11]} 1-0